fUSD/lending_fUSD_20250205
["ID","MTS","AMOUNT","RATE_DAILY","PERIOD"]
[351749006,1738775446246,-6686.71919497,0.00012,2]
[351749008,1738775446259,-1049.66192647,0.00012,2]
[351749011,1738775446274,-5843.47300436,0.00012,2]
[351749013,1738775446285,-4310.13902088,0.00012,2]
[351749331,1738776559138,-267.2876,8.699e-05,2]
[351749332,1738776559160,-3880.0135,8.699e-05,2]
[351749333,1738776559183,-175.84689,8.798e-05,2]
[351749342,1738776605494,-267.77,8.535e-05,2]
[351749343,1738776605518,-521.94,8.575e-05,2]
[351749344,1738776605542,-157.254674,8.799e-05,2]
[351749345,1738776605568,-168.533856,8.799e-05,2]
[351749346,1738776605595,-152.728,8.799e-05,2]
[351749347,1738776605619,-157.254674,8.799e-05,2]
[351749348,1738776605645,-196.622832,8.799e-05,2]
[351749349,1738776605668,-500.0,8.799e-05,2]
[351749350,1738776605692,-500.0,8.799e-05,2]
[351749351,1738776605717,-500.0,8.799e-05,2]
[351749352,1738776605741,-500.0,8.799e-05,2]
[351749353,1738776605768,-500.0,8.799e-05,2]
[351749354,1738776605792,-500.0,8.799e-05,2]
[351749355,1738776605816,-500.0,8.799e-05,2]
[351749356,1738776605841,-299.46567977,8.799e-05,2]
[351749357,1738776605865,-500.0,8.799e-05,2]
[351749358,1738776605888,-500.0,8.799e-05,2]
[351749359,1738776605914,-500.0,8.799e-05,2]
[351749360,1738776605937,-500.0,8.799e-05,2]
[351749361,1738776605962,-500.0,8.799e-05,2]
[351749362,1738776605986,-500.0,8.799e-05,2]
[351749363,1738776606013,-500.0,8.799e-05,2]
[351749364,1738776606036,-500.0,8.799e-05,2]
[351749365,1738776606059,-500.0,8.799e-05,2]
[351749366,1738776606082,-78.43028423,8.799e-05,2]
[351749367,1738776607036,-421.56971577,8.799e-05,2]
[351749368,1738776607058,-500.0,8.799e-05,2]
[351749369,1738776607083,-500.0,8.799e-05,2]
[351749370,1738776607105,-500.0,8.799e-05,2]
[351749371,1738776607127,-500.0,8.799e-05,2]
[351749372,1738776607150,-500.0,8.799e-05,2]
[351749373,1738776607178,-500.0,8.799e-05,2]
[351749374,1738776607200,-500.0,8.799e-05,2]
[351749375,1738776607223,-220.24,8.799e-05,2]
[351749376,1738776607248,-500.0,8.799e-05,2]
[351749377,1738776607271,-566.98,8.799e-05,2]
[351749378,1738776607293,-500.0,8.799e-05,2]
[351749379,1738776607315,-500.0,8.799e-05,2]
[351749380,1738776607338,-500.0,8.799e-05,2]
[351749381,1738776607359,-500.0,8.799e-05,2]
[351749382,1738776607382,-500.0,8.799e-05,2]
[351749383,1738776607405,-500.0,8.799e-05,2]
[351749384,1738776607428,-500.0,8.799e-05,2]
[351749385,1738776607452,-500.0,8.799e-05,2]
[351749386,1738776607478,-500.0,8.799e-05,2]
[351749387,1738776607503,-291.21028423,8.799e-05,2]
[351749388,1738776607558,-208.78971577,8.799e-05,2]
[351749389,1738776607582,-500.0,8.799e-05,2]
[351749390,1738776607606,-9291.21028423,8.8e-05,2]
[351749391,1738776607659,-10000.0,8.8e-05,2]
[351749392,1738776611502,-234.0748,8.799e-05,2]
[351749393,1738776611526,-387.8,8.799e-05,2]
[351749394,1738776611549,-9378.1252,8.8e-05,2]
[351749395,1738776611938,-10000.0,8.8e-05,2]
[351749396,1738776612453,-500.0,8.799e-05,2]
[351749397,1738776612478,-9500.0,8.8e-05,2]
[351749398,1738776612944,-10000.0,8.8e-05,2]
[351749399,1738776613415,-10000.0,8.8e-05,2]
[351749400,1738776618877,-400.0,8.799e-05,2]
[351749417,1738776631965,-100.0,8.799e-05,2]
[351749418,1738776631974,-500.0,8.799e-05,2]
[351749419,1738776631984,-500.0,8.799e-05,2]
[351749420,1738776631994,-500.0,8.799e-05,2]
[351749421,1738776632004,-500.0,8.799e-05,2]
[351749422,1738776632014,-155.11,8.799e-05,2]
[351749423,1738776632023,-101.39920683,8.799e-05,2]
[351749424,1738776632035,-398.60079317,8.799e-05,2]
[351749425,1738776632044,-500.0,8.799e-05,2]
[351749426,1738776632054,-566.39,8.799e-05,2]
[351749427,1738776632063,-500.0,8.799e-05,2]
[351749428,1738776632073,-500.0,8.799e-05,2]
[351749429,1738776632082,-500.0,8.799e-05,2]
[351749430,1738776632091,-500.0,8.799e-05,2]
[351749431,1738776632100,-500.0,8.799e-05,2]
[351749432,1738776632110,-500.0,8.799e-05,2]
[351749433,1738776632119,-500.0,8.799e-05,2]
[351749434,1738776632129,-6309.83923093,8.8e-05,2]
[351749439,1738776632341,-49333.44234574,8.8e-05,2]
[351749440,1738776632359,-802.31557787,8.8e-05,2]
[351749441,1738776632370,-362.8577095,8.8e-05,2]
[351749442,1738776632382,-468.53761822,8.8e-05,2]
[351749443,1738776632393,-32004.69271548,8.8e-05,2]
[351749444,1738776632416,-5713.33445006,8.8e-05,2]
[351749611,1738776637851,-500.0,8.799e-05,2]
[351749612,1738776637861,-143.25932,8.799e-05,2]
[351749613,1738776637963,-356.74068,8.799e-05,2]
[351749614,1738776637973,-590.2,8.799e-05,2]
[351749615,1738776637982,-500.0,8.799e-05,2]
[351749616,1738776637996,-577.74288053,8.799e-05,2]
[351749617,1738776638007,-776214.31212964,8.8e-05,2]
[351749618,1738776638016,-2500.0,8.851e-05,2]
[351749619,1738776638025,-157.254674,8.936e-05,2]
[351749620,1738776638034,-500.0,8.936e-05,2]
[351749621,1738776638043,-500.0,8.936e-05,2]
[351749622,1738776638052,-500.0,8.936e-05,2]
[351749623,1738776638062,-500.0,8.936e-05,2]
[351749624,1738776638071,-168.87,8.936e-05,2]
[351749625,1738776638080,-223.18,8.936e-05,2]
[351749626,1738776638089,-500.0,8.936e-05,2]
[351749627,1738776638099,-500.0,8.936e-05,2]
[351749628,1738776638107,-500.0,8.936e-05,2]
[351749629,1738776638116,-500.0,8.936e-05,2]
[351749630,1738776638126,-500.0,8.936e-05,2]
[351749631,1738776638136,-500.0,8.936e-05,2]
[351749632,1738776638147,-500.0,8.936e-05,2]
[351749633,1738776638156,-414.69,8.936e-05,2]
[351749634,1738776638165,-500.0,8.936e-05,2]
[351749635,1738776638174,-500.0,8.936e-05,2]
[351749636,1738776638184,-500.0,8.936e-05,2]
[351749637,1738776638193,-500.0,8.936e-05,2]
[351749638,1738776638203,-500.0,8.936e-05,2]
[351749639,1738776638212,-222.12,8.936e-05,2]
[351749640,1738776638222,-500.0,8.936e-05,2]
[351749642,1738776638231,-500.0,8.936e-05,2]
[351749643,1738776638243,-500.0,8.936e-05,2]
[351749644,1738776638253,-500.0,8.936e-05,2]
[351749645,1738776638263,-500.0,8.936e-05,2]
[351749646,1738776638272,-500.0,8.936e-05,2]
[351749647,1738776638282,-500.0,8.936e-05,2]
[351749649,1738776638292,-500.0,8.936e-05,2]
[351749651,1738776638302,-500.0,8.936e-05,2]
[351749653,1738776638312,-500.0,8.936e-05,2]
[351749655,1738776638321,-500.0,8.936e-05,2]
[351749657,1738776638331,-500.0,8.936e-05,2]
[351749659,1738776638340,-500.0,8.936e-05,2]
[351749661,1738776638349,-500.0,8.936e-05,2]
[351749665,1738776638359,-234.0748,8.936e-05,2]
[351749669,1738776638368,-500.0,8.936e-05,2]
[351749673,1738776638377,-500.0,8.936e-05,2]
[351749676,1738776638386,-500.0,8.936e-05,2]
[351749680,1738776638395,-500.0,8.936e-05,2]
[351749684,1738776638405,-500.0,8.936e-05,2]
[351749686,1738776638414,-500.0,8.936e-05,2]
[351749688,1738776638423,-409.97,8.936e-05,2]
[351749690,1738776638432,-500.0,8.936e-05,2]
[351749692,1738776638441,-500.0,8.936e-05,2]
[351749694,1738776638450,-500.0,8.936e-05,2]
[351749696,1738776638459,-500.0,8.936e-05,2]
[351749698,1738776638468,-500.0,8.936e-05,2]
[351749700,1738776638478,-375.06,8.936e-05,2]
[351749702,1738776638487,-500.0,8.936e-05,2]
[351749704,1738776638498,-321.18,8.936e-05,2]
[351749706,1738776638507,-24856.2715,8.973e-05,2]
[351749708,1738776638516,-23900.0,9.033e-05,2]
[351749710,1738776638525,-292.49,9.073e-05,2]
[351749712,1738776638535,-500.0,9.073e-05,2]
[351749714,1738776638543,-1316.46,9.073e-05,2]
[351749715,1738776638552,-298.94,9.073e-05,2]
[351749717,1738776638562,-2085.23,9.073e-05,2]
[351749719,1738776638571,-9999.99,9.073e-05,2]
[351749721,1738776638581,-500.0,9.073e-05,2]
[351749723,1738776638590,-500.0,9.073e-05,2]
[351749725,1738776638599,-500.0,9.073e-05,2]
[351749727,1738776638608,-500.0,9.073e-05,2]
[351749729,1738776638618,-500.0,9.073e-05,2]
[351749731,1738776638627,-500.0,9.073e-05,2]
[351749733,1738776638636,-500.0,9.073e-05,2]
[351749734,1738776638644,-500.0,9.073e-05,2]
[351749736,1738776638654,-500.0,9.073e-05,2]
[351749738,1738776638663,-301.28,9.073e-05,2]
[351749740,1738776638673,-500.0,9.073e-05,2]
[351749742,1738776638683,-500.0,9.073e-05,2]
[351749744,1738776638692,-500.0,9.073e-05,2]
[351749746,1738776638701,-500.0,9.073e-05,2]
[351749748,1738776638711,-612.68442272,9.073e-05,2]
[351749750,1738776638720,-500.0,9.073e-05,2]
[351749752,1738776638730,-605.23,9.073e-05,2]
[351749754,1738776638739,-500.0,9.073e-05,2]
[351749755,1738776638750,-500.0,9.073e-05,2]
[351749756,1738776638758,-500.0,9.073e-05,2]
[351749757,1738776638768,-500.0,9.073e-05,2]
[351749758,1738776638777,-500.0,9.073e-05,2]
[351749759,1738776638786,-500.0,9.073e-05,2]
[351749760,1738776638795,-500.0,9.073e-05,2]
[351749761,1738776638804,-500.0,9.073e-05,2]
[351749762,1738776638812,-262.13,9.073e-05,2]
[351749763,1738776638822,-500.0,9.073e-05,2]
[351749764,1738776638830,-234.0748,9.073e-05,2]
[351749765,1738776638839,-500.0,9.073e-05,2]
[351749766,1738776638848,-500.0,9.073e-05,2]
[351749767,1738776638856,-500.0,9.073e-05,2]
[351749768,1738776638867,-500.0,9.073e-05,2]
[351749769,1738776638876,-338.56,9.073e-05,2]
[351749770,1738776638885,-500.0,9.073e-05,2]
[351749771,1738776638893,-500.0,9.073e-05,2]
[351749772,1738776638902,-500.0,9.073e-05,2]
[351749773,1738776638911,-201.22474098,9.073e-05,2]
[351749774,1738776638926,-500.0,9.073e-05,2]
[351749775,1738776638934,-18023.29,9.19e-05,2]
[351749777,1738776638944,-9999.99,9.19e-05,2]
[351749778,1738776638953,-999.99,9.19e-05,2]
[351749780,1738776638965,-157.254674,9.204e-05,2]
[351749782,1738776638974,-157.254674,9.204e-05,2]
[351749784,1738776638984,-499.99,9.204e-05,2]
[351749786,1738776638996,-150.99,9.204e-05,2]
[351749788,1738776639005,-4382.46,9.204e-05,2]
[351749790,1738776639015,-150.99,9.204e-05,2]
[351749792,1738776639025,-9999.99,9.204e-05,2]
[351749794,1738776639034,-299.99,9.204e-05,2]
[351749796,1738776639043,-932.99,9.204e-05,2]
[351749798,1738776639052,-533.87,9.21e-05,2]
[351749799,1738776639061,-500.0,9.21e-05,2]
[351749801,1738776639070,-500.0,9.21e-05,2]
[351749804,1738776639080,-500.0,9.21e-05,2]
[351749806,1738776639090,-500.0,9.21e-05,2]
[351749808,1738776639099,-456.21,9.21e-05,2]
[351749810,1738776639108,-500.0,9.21e-05,2]
[351749811,1738776639118,-500.0,9.21e-05,2]
[351749813,1738776639127,-500.0,9.21e-05,2]
[351749815,1738776639136,-208.01,9.21e-05,2]
[351749817,1738776639146,-500.0,9.21e-05,2]
[351749819,1738776639156,-500.0,9.21e-05,2]
[351749821,1738776639165,-500.0,9.21e-05,2]
[351749823,1738776639175,-319.72,9.21e-05,2]
[351749825,1738776639184,-500.0,9.21e-05,2]
[351749827,1738776639193,-500.0,9.21e-05,2]
[351749829,1738776639202,-500.0,9.21e-05,2]
[351749831,1738776639211,-500.0,9.21e-05,2]
[351749833,1738776639220,-500.0,9.21e-05,2]
[351749835,1738776639229,-500.0,9.21e-05,2]
[351749837,1738776639238,-500.0,9.21e-05,2]
[351749839,1738776639249,-500.0,9.21e-05,2]
[351749841,1738776639258,-500.0,9.21e-05,2]
[351749843,1738776639268,-500.0,9.21e-05,2]
[351749845,1738776639278,-234.0748,9.21e-05,2]
[351749847,1738776639287,-500.0,9.21e-05,2]
[351749849,1738776639296,-500.0,9.21e-05,2]
[351749851,1738776639305,-500.0,9.21e-05,2]
[351749853,1738776639315,-500.0,9.21e-05,2]
[351749855,1738776639324,-500.0,9.21e-05,2]
[351749857,1738776639333,-500.0,9.21e-05,2]
[351749859,1738776639344,-500.0,9.21e-05,2]
[351749861,1738776639353,-500.0,9.21e-05,2]
[351749863,1738776639364,-1104.78,9.282e-05,2]
[351749865,1738776639374,-157.254674,9.341e-05,2]
[351749867,1738776639383,-500.0,9.347e-05,2]
[351749869,1738776639393,-500.0,9.347e-05,2]
[351749871,1738776639402,-214.21,9.347e-05,2]
[351749873,1738776639411,-500.0,9.347e-05,2]
[351749875,1738776639421,-500.0,9.347e-05,2]
[351749877,1738776639430,-500.0,9.347e-05,2]
[351749879,1738776639439,-500.0,9.347e-05,2]
[351749881,1738776639449,-248.04988159,9.347e-05,2]
[351749883,1738776639458,-500.0,9.347e-05,2]
[351749885,1738776639468,-500.0,9.347e-05,2]
[351749887,1738776639478,-500.0,9.347e-05,2]
[351749889,1738776639487,-500.0,9.347e-05,2]
[351749891,1738776639500,-500.0,9.347e-05,2]
[351749893,1738776639509,-500.0,9.347e-05,2]
[351749895,1738776639518,-500.0,9.347e-05,2]
[351749897,1738776639527,-500.0,9.347e-05,2]
[351749899,1738776639536,-500.0,9.347e-05,2]
[351749901,1738776639546,-500.0,9.347e-05,2]
[351749903,1738776639556,-500.0,9.347e-05,2]
[351749905,1738776639565,-500.0,9.347e-05,2]
[351749907,1738776639575,-234.0748,9.347e-05,2]
[351749909,1738776639584,-639.76,9.347e-05,2]
[351749911,1738776639594,-238.85068178,9.347e-05,2]
[351749913,1738776639603,-500.0,9.347e-05,2]
[351749914,1738776639612,-241.81,9.347e-05,2]
[351749916,1738776639622,-500.0,9.347e-05,2]
[351749918,1738776639633,-500.0,9.347e-05,2]
[351749921,1738776639644,-500.0,9.347e-05,2]
[351749922,1738776639653,-500.0,9.347e-05,2]
[351749924,1738776639663,-157.254674,9.475e-05,2]
[351749926,1738776639673,-157.254674,9.475e-05,2]
[351749928,1738776639682,-157.254674,9.484e-05,2]
[351749931,1738776639692,-500.0,9.484e-05,2]
[351749932,1738776639701,-500.0,9.484e-05,2]
[351749935,1738776639711,-573.27,9.484e-05,2]
[351749936,1738776639721,-634.6,9.484e-05,2]
[351749938,1738776639730,-385.64,9.484e-05,2]
[351749940,1738776639740,-500.0,9.484e-05,2]
[351749942,1738776639750,-500.0,9.484e-05,2]
[351749944,1738776639759,-500.0,9.484e-05,2]
[351749946,1738776639769,-500.0,9.484e-05,2]
[351749948,1738776639778,-500.0,9.484e-05,2]
[351749951,1738776639787,-333.2,9.484e-05,2]
[351749952,1738776639797,-500.0,9.484e-05,2]
[351749954,1738776639806,-500.0,9.484e-05,2]
[351749957,1738776639816,-500.0,9.484e-05,2]
[351749960,1738776639825,-500.0,9.484e-05,2]
[351749962,1738776639835,-500.0,9.484e-05,2]
[351749966,1738776639844,-500.0,9.484e-05,2]
[351749968,1738776639855,-500.0,9.484e-05,2]
[351749970,1738776639864,-234.0748,9.484e-05,2]
[351749972,1738776639874,-500.0,9.484e-05,2]
[351749975,1738776639884,-500.0,9.484e-05,2]
[351749976,1738776639893,-500.0,9.484e-05,2]
[351749978,1738776639903,-425.96,9.484e-05,2]
[351749982,1738776639913,-500.0,9.484e-05,2]
[351749983,1738776639924,-157.254674,9.616e-05,2]
[351749986,1738776639936,-157.254674,9.616e-05,2]
[351749988,1738776639945,-610.03,9.621e-05,2]
[351749990,1738776639955,-500.0,9.621e-05,2]
[351749992,1738776639964,-500.0,9.621e-05,2]
[351749993,1738776639974,-500.0,9.621e-05,2]
[351749996,1738776639984,-500.0,9.621e-05,2]
[351749998,1738776639996,-500.0,9.621e-05,2]
[351749999,1738776640008,-488.68,9.621e-05,2]
[351750001,1738776640018,-500.0,9.621e-05,2]
[351750003,1738776640027,-500.0,9.621e-05,2]
[351750005,1738776640037,-207.14,9.621e-05,2]
[351750007,1738776640047,-500.0,9.621e-05,2]
[351750009,1738776640056,-500.0,9.621e-05,2]
[351750011,1738776640066,-246.58,9.621e-05,2]
[351750013,1738776640075,-190.1,9.621e-05,2]
[351750015,1738776640084,-500.0,9.621e-05,2]
[351750017,1738776640094,-500.0,9.621e-05,2]
[351750019,1738776640102,-500.0,9.621e-05,2]
[351750021,1738776640112,-500.0,9.621e-05,2]
[351750023,1738776640121,-157.254674,9.758e-05,2]
[351750024,1738776640130,-599.18,9.758e-05,2]
[351750026,1738776640139,-500.0,9.758e-05,2]
[351750028,1738776640148,-500.0,9.758e-05,2]
[351750030,1738776640158,-500.0,9.758e-05,2]
[351750032,1738776640167,-500.0,9.758e-05,2]
[351750034,1738776640177,-441.0,9.758e-05,2]
[351750036,1738776640186,-500.0,9.758e-05,2]
[351750038,1738776640196,-500.0,9.758e-05,2]
[351750040,1738776640205,-500.0,9.758e-05,2]
[351750042,1738776640216,-337.47,9.758e-05,2]
[351750045,1738776640226,-505.51,9.758e-05,2]
[351750046,1738776640235,-500.0,9.758e-05,2]
[351750049,1738776640246,-500.0,9.758e-05,2]
[351750050,1738776640255,-492.24,9.895e-05,2]
[351750052,1738776640265,-500.0,9.895e-05,2]
[351750054,1738776640275,-233.64,9.895e-05,2]
[351750056,1738776640284,-500.0,9.895e-05,2]
[351750058,1738776640293,-564.08,9.895e-05,2]
[351750060,1738776640303,-500.0,9.895e-05,2]
[351750062,1738776640312,-500.0,9.895e-05,2]
[351750064,1738776640322,-500.0,9.895e-05,2]
[351750066,1738776640331,-277.97,9.895e-05,2]
[351750068,1738776640342,-992.0230457,9.931e-05,2]
[351750070,1738776640351,-992.0230457,9.934e-05,2]
[351750072,1738776640362,-992.0230457,9.938e-05,2]
[351750074,1738776640372,-608.28662436,9.947e-05,2]
[351750076,1738776640381,-608.28662436,9.955e-05,2]
[351750078,1738776640391,-608.28662436,9.955e-05,2]
[351750080,1738776640401,-608.28662436,9.958e-05,2]
[351750082,1738776640411,-4843.0,9.973e-05,2]
[351750084,1738776640420,-50057.0,9.973e-05,2]
[351750086,1738776640430,-992.0230457,9.98e-05,2]
[351750088,1738776640439,-8056.57471581,0.0001,2]
[351750090,1738776640449,-3804818.96639326,0.0001,2]
[351750092,1738776640459,-570.09,0.00010032,2]
[351750094,1738776640469,-500.0,0.00010032,2]
[351750096,1738776640479,-351.32,0.00010032,2]
[351750098,1738776640488,-500.0,0.00010032,2]
[351750100,1738776640499,-500.0,0.00010032,2]
[351750102,1738776640508,-500.0,0.00010164,2]
[351750104,1738776640518,-500.0,0.00010169,2]
[351750106,1738776640528,-500.0,0.00010169,2]
[351750108,1738776640539,-500.0,0.00010169,2]
[351750110,1738776640548,-500.0,0.00010306,2]
[351750112,1738776640558,-500.0,0.00010306,2]
[351750114,1738776640567,-500.0,0.00010306,2]
[351750116,1738776640577,-1852.42,0.00010374,2]
[351750118,1738776640586,-1820.66,0.00010419,2]
[351750120,1738776640596,-500.0,0.00010443,2]
[351750122,1738776640605,-500.0,0.00010443,2]
[351750124,1738776640614,-469.79,0.00010443,2]
[351750126,1738776640623,-5556.0,0.000105,3]
[351750127,1738776640632,-500.0,0.0001058,2]
[351750129,1738776640641,-500.0,0.0001058,2]
[351750131,1738776640651,-537.03,0.00010717,2]
[351750133,1738776640660,-539.74,0.00010717,2]
[351750135,1738776640670,-454.81,0.00010776,2]
[351750137,1738776640681,-374.09,0.00010784,2]
[351750139,1738776640691,-5556.0,0.000108,5]
[351750142,1738776640701,-151.08814574,0.000109,2]
[351750144,1738776640710,-151.08814574,0.000109,2]
[351750146,1738776640719,-151.08814574,0.000109,2]
[351750148,1738776640729,-151.08814574,0.00011113,2]
[351750150,1738776640738,-384.47,0.0001113,2]
[351750152,1738776640749,-384.47,0.00011133,2]
[351750154,1738776640759,-384.47,0.00011135,2]
[351750156,1738776640769,-384.47,0.00011138,2]
[351750158,1738776640778,-384.47,0.00011141,2]
[351750160,1738776640788,-384.47,0.00011144,2]
[351750162,1738776640797,-384.47,0.00011147,2]
[351750164,1738776640806,-384.47,0.0001115,2]
[351750166,1738776640815,-384.47,0.00011153,2]
[351750168,1738776640825,-384.47,0.00011156,2]
[351750169,1738776640834,-384.47,0.00011159,2]
[351750171,1738776640843,-384.47,0.00011162,2]
[351750173,1738776640852,-384.47,0.00011165,2]
[351750175,1738776640862,-384.47,0.00011168,2]
[351750177,1738776640871,-384.47,0.00011171,2]
[351750179,1738776640880,-384.47,0.00011174,2]
[351750181,1738776640890,-384.47,0.00011177,2]
[351750183,1738776640899,-384.47,0.00011179,2]
[351750185,1738776640908,-384.47,0.00011182,2]
[351750187,1738776640918,-384.47,0.00011185,2]
[351750189,1738776640929,-197.29,0.00011199,2]
[351750191,1738776640938,-739.33,0.00011199,2]
[351750193,1738776640947,-1000.0,0.0001124,2]
[351750195,1738776640956,-1104.78,0.00011546,2]
[351750197,1738776640967,-715.986,0.000117,2]
[351750199,1738776640976,-502450.87481236,0.000118,2]
[351750221,1738776641169,-153.41833999,0.00011898,2]
[351750223,1738776641179,-500.0,0.00011898,2]
[351750224,1738776641189,-500.0,0.00011898,2]
[351750227,1738776641198,-500.0,0.00011898,2]
[351750229,1738776641209,-500.0,0.00011898,2]
[351750230,1738776641218,-167906.28175172,0.00011898,2]
[351750232,1738776641228,-381.61,0.00011898,2]
[351750235,1738776641238,-373.91,0.00011898,2]
[351750236,1738776641249,-5000.0,0.000119,2]
[351750239,1738776641259,-2032.19,0.000119,2]
[351750240,1738776641268,-151.08814574,0.000119,2]
[351750242,1738776641278,-257.28948666,0.0001194,2]
[351750245,1738776641287,-2170.43376116,0.00011998,2]
[351750247,1738776641296,-500.0,0.00011998,2]
[351750248,1738776641306,-406.25,0.00011998,2]
[351750250,1738776641316,-569.6,0.00011998,2]
[351750252,1738776641324,-500.0,0.00011998,2]
[351750254,1738776641333,-550.64,0.00011998,2]
[351750257,1738776641344,-500.0,0.00011998,2]
[351750259,1738776641354,-500.0,0.00011998,2]
[351750260,1738776641363,-500.0,0.00011998,2]
[351750262,1738776641373,-500.0,0.00011998,2]
[351750264,1738776641382,-222.86,0.00011998,2]
[351750266,1738776641392,-500.0,0.00011998,2]
[351750268,1738776641401,-500.0,0.00011998,2]
[351750270,1738776641411,-543.42,0.00011998,2]
[351750272,1738776641420,-360.88,0.00011998,2]
[351750274,1738776641428,-607.84,0.00011998,2]
[351750276,1738776641438,-500.0,0.00011998,2]
[351750278,1738776641448,-500.0,0.00011998,2]
[351750280,1738776641458,-500.0,0.00011998,2]
[351750282,1738776641468,-500.0,0.00011998,2]
[351750284,1738776641478,-500.0,0.00011998,2]
[351750286,1738776641487,-500.0,0.00011998,2]
[351750288,1738776641498,-500.0,0.00011998,2]
[351750290,1738776641508,-500.0,0.00011998,2]
[351750292,1738776641517,-500.0,0.00011998,2]
[351750294,1738776641526,-577.96,0.00011998,2]
[351750296,1738776641536,-500.0,0.00011998,2]
[351750298,1738776641546,-500.0,0.00011998,2]
[351750300,1738776641556,-500.0,0.00011998,2]
[351750302,1738776641566,-492.92,0.00011998,2]
[351750304,1738776641576,-500.0,0.00011998,2]
[351750306,1738776641586,-500.0,0.00011998,2]
[351750308,1738776641595,-500.0,0.00011998,2]
[351750311,1738776641616,-500.0,0.00011998,2]
[351750313,1738776641629,-500.0,0.00011998,2]
[351750315,1738776641641,-487.34004636,0.00011998,2]
[351750317,1738776641653,-500.0,0.00011998,2]
[351750319,1738776641665,-724.18,0.00011998,2]
[351750321,1738776641676,-500.0,0.00011998,2]
[351750322,1738776641687,-637.06,0.00011998,2]
[351750323,1738776641698,-500.0,0.00011998,2]
[351750324,1738776641708,-500.0,0.00011998,2]
[351750325,1738776641719,-500.0,0.00011998,2]
[351750326,1738776641734,-500.0,0.00011998,2]
[351750327,1738776641751,-500.0,0.00011998,2]
[351750328,1738776641762,-500.0,0.00011998,2]
[351750329,1738776641772,-500.0,0.00011998,2]
[351750330,1738776641784,-500.0,0.00011998,2]
[351750331,1738776641795,-505.41136474,0.00011998,2]
[351750332,1738776641805,-500.0,0.00011998,2]
[351750333,1738776641815,-500.0,0.00011998,2]
[351750335,1738776641826,-500.0,0.00011998,2]
[351750337,1738776641835,-500.0,0.00011998,2]
[351750339,1738776641845,-500.0,0.00011998,2]
[351750341,1738776641855,-500.0,0.00011998,2]
[351750343,1738776641865,-500.0,0.00011998,2]
[351750345,1738776641875,-500.0,0.00011998,2]
[351750347,1738776641886,-500.0,0.00011998,2]
[351750349,1738776641896,-500.0,0.00011998,2]
[351750351,1738776641905,-500.0,0.00011998,2]
[351750353,1738776641916,-500.0,0.00011998,2]
[351750355,1738776641927,-509.06384493,0.00011998,2]
[351750357,1738776641938,-500.0,0.00011998,2]
[351750359,1738776641947,-500.0,0.00011998,2]
[351750361,1738776641957,-594.71404397,0.00011998,2]
[351750363,1738776641967,-500.0,0.00011998,2]
[351750365,1738776641977,-500.0,0.00011998,2]
[351750367,1738776641987,-501.03893941,0.00011998,2]
[351750369,1738776642001,-574.49,0.00011998,2]
[351750371,1738776642011,-500.0,0.00011998,2]
[351750373,1738776642022,-500.0,0.00011998,2]
[351750375,1738776642031,-500.0,0.00011998,2]
[351750377,1738776642041,-500.0,0.00011998,2]
[351750379,1738776642051,-500.0,0.00011998,2]
[351750381,1738776642061,-522.46,0.00011998,2]
[351750383,1738776642071,-500.0,0.00011998,2]
[351750385,1738776642081,-500.0,0.00011998,2]
[351750387,1738776642090,-500.0,0.00011998,2]
[351750389,1738776642100,-500.0,0.00011998,2]
[351750391,1738776642109,-500.0,0.00011998,2]